[Event "*** Titled Tuesday Blitz"]
[Site "Chess.com"]
[Date "2021.03.09"]
[Round "7"]
[White "CSB7"]
[Black "Vanina1989"]
[Result "1-0"]
[WhiteElo "2605"]
[BlackElo "2735"]
[TimeControl "180+1"]
[EndTime "11:20:57 PST"]
[Termination "CSB7 won on time"]

1. e4 {[%clk 0:03:00.9]} 1... c6 {[%clk 0:02:57.5]} 2. Nc3 {[%clk 0:03:00.4]}
2... d5 {[%clk 0:02:57.7]} 3. Nf3 {[%clk 0:03:01]} 3... dxe4 {[%clk 0:02:57.8]}
4. Nxe4 {[%clk 0:03:00.6]} 4... Nf6 {[%clk 0:02:58.5]} 5. Qe2 {[%clk 0:02:58.2]}
5... Nxe4 {[%clk 0:02:58.5]} 6. Qxe4 {[%clk 0:02:59.1]} 6... Nd7 {[%clk
0:02:59]} 7. Bc4 {[%clk 0:02:58.2]} 7... Nf6 {[%clk 0:02:58.9]} 8. Ne5 {[%clk
0:02:58.1]} 8... e6 {[%clk 0:02:59.4]} 9. Qe2 {[%clk 0:02:58.5]} 9... b5 {[%clk
0:02:59.7]} 10. Bd3 {[%clk 0:02:56.3]} 10... Qc7 {[%clk 0:02:51.9]} 11. b3
{[%clk 0:02:52.4]} 11... Nd5 {[%clk 0:02:50.1]} 12. g3 {[%clk 0:02:37.1]} 12...
Nb4 {[%clk 0:02:49.7]} 13. Bb2 {[%clk 0:02:28.3]} 13... Nxd3+ {[%clk 0:02:48.5]}
14. cxd3 {[%clk 0:02:09.4]} 14... Bb7 {[%clk 0:02:45.3]} 15. Rc1 {[%clk
0:02:06]} 15... c5 {[%clk 0:02:36.8]} 16. O-O {[%clk 0:01:49]} 16... a6 {[%clk
0:01:44]} 17. d4 {[%clk 0:01:39.7]} 17... Qb6 {[%clk 0:01:39.9]} 18. Rfe1 {[%clk
0:01:23.6]} 18... cxd4 {[%clk 0:01:04.4]} 19. Qg4 {[%clk 0:01:03.9]} 19... Rd8
{[%clk 0:00:53.1]} 20. Qf4 {[%clk 0:00:58]} 20... f6 {[%clk 0:00:45.5]} 21. Nc6
{[%clk 0:00:56.3]} 21... e5 {[%clk 0:00:25.3]} 22. Rxe5+ {[%clk 0:00:44]} 22...
fxe5 {[%clk 0:00:14.3]} 23. Qxe5+ {[%clk 0:00:44.9]} 23... Kd7 {[%clk 0:00:11]}
24. Qd5+ {[%clk 0:00:41]} 24... Kc8 {[%clk 0:00:06.7]} 25. Nxd8+ {[%clk
0:00:40.1]} 25... Kb8 {[%clk 0:00:06.6]} 26. Nxb7 {[%clk 0:00:39.9]} 26... Qxb7
{[%clk 0:00:05.4]} 27. Qd8+ {[%clk 0:00:40.1]} 1-0

[Event "*** Titled Tuesday Blitz"]
[Site "Chess.com"]
[Date "2021.03.09"]
[Round "7"]
[White "Reader777"]
[Black "Airquake"]
[Result "1-0"]
[WhiteElo "2804"]
[BlackElo "2602"]
[TimeControl "180+1"]
[EndTime "11:21:05 PST"]
[Termination "Reader777 won on time"]

1. d4 {[%clk 0:03:00.9]} 1... Nf6 {[%clk 0:02:45.5]} 2. c4 {[%clk 0:03:00.8]}
2... e6 {[%clk 0:02:45.3]} 3. g3 {[%clk 0:03:00.3]} 3... g6 {[%clk 0:02:44.3]}
4. Bg2 {[%clk 0:02:59.7]} 4... Bg7 {[%clk 0:02:45.2]} 5. Nf3 {[%clk 0:02:59.7]}
5... O-O {[%clk 0:02:45.4]} 6. O-O {[%clk 0:03:00.4]} 6... d6 {[%clk 0:02:45.6]}
7. Nc3 {[%clk 0:02:59.8]} 7... c6 {[%clk 0:02:45.9]} 8. b3 {[%clk 0:02:56.7]}
8... Nbd7 {[%clk 0:02:45.3]} 9. Ba3 {[%clk 0:02:52.9]} 9... c5 {[%clk 0:02:35]}
10. Qd2 {[%clk 0:02:44.7]} 10... a6 {[%clk 0:02:26.8]} 11. Rad1 {[%clk
0:02:43.3]} 11... Qc7 {[%clk 0:02:27]} 12. e4 {[%clk 0:02:28.1]} 12... Rb8
{[%clk 0:01:56.2]} 13. Rfe1 {[%clk 0:02:09]} 13... b5 {[%clk 0:01:47.3]} 14.
dxc5 {[%clk 0:02:00.6]} 14... dxc5 {[%clk 0:01:16.7]} 15. cxb5 {[%clk
0:01:43.4]} 15... axb5 {[%clk 0:01:16]} 16. Bb2 {[%clk 0:01:41.6]} 16... b4
{[%clk 0:00:43.6]} 17. Na4 {[%clk 0:01:40.4]} 17... c4 {[%clk 0:00:43.8]} 18.
bxc4 {[%clk 0:01:30.2]} 18... Qa5 {[%clk 0:00:39.1]} 19. Qc2 {[%clk 0:01:15.6]}
19... Ra8 {[%clk 0:00:38.9]} 20. e5 {[%clk 0:01:04.5]} 20... Nh5 {[%clk
0:00:38.3]} 21. Qe4 {[%clk 0:00:46.9]} 21... Qxa4 {[%clk 0:00:33.5]} 22. g4
{[%clk 0:00:46.9]} 22... f5 {[%clk 0:00:13.6]} 23. exf6 {[%clk 0:00:43.6]} 23...
Nhxf6 {[%clk 0:00:13.2]} 24. Qxe6+ {[%clk 0:00:43]} 24... Kh8 {[%clk 0:00:13.8]}
25. Ng5 {[%clk 0:00:40.3]} 25... Ra7 {[%clk 0:00:03.9]} 26. Nf7+ {[%clk
0:00:39.4]} 26... Rxf7 {[%clk 0:00:03.7]} 27. Qxf7 {[%clk 0:00:39.9]} 27... Qc2
{[%clk 0:00:02.9]} 28. Re8+ {[%clk 0:00:37.9]} 28... Nxe8 {[%clk 0:00:02.6]} 29.
Qxe8+ {[%clk 0:00:38.6]} 1-0

[Event "*** Titled Tuesday Blitz"]
[Site "Chess.com"]
[Date "2021.03.09"]
[Round "7"]
[White "profofchess"]
[Black "ARTHURMOTIVATOR"]
[Result "0-1"]
[WhiteElo "2484"]
[BlackElo "2357"]
[TimeControl "180+1"]
[EndTime "11:21:06 PST"]
[Termination "ARTHURMOTIVATOR won by checkmate"]

1. e4 {[%clk 0:03:00.9]} 1... e5 {[%clk 0:02:51.7]} 2. Nf3 {[%clk 0:02:59.8]}
2... Nc6 {[%clk 0:02:46.5]} 3. Nc3 {[%clk 0:03:00]} 3... Nf6 {[%clk 0:02:42.9]}
4. Bb5 {[%clk 0:03:00.1]} 4... Bb4 {[%clk 0:02:38.2]} 5. O-O {[%clk 0:02:59.3]}
5... d6 {[%clk 0:02:33.9]} 6. d3 {[%clk 0:02:59.3]} 6... O-O {[%clk 0:02:31.8]}
7. Ne2 {[%clk 0:02:58.4]} 7... a6 {[%clk 0:02:25.4]} 8. Ba4 {[%clk 0:02:56.7]}
8... Nh5 {[%clk 0:02:20.1]} 9. c3 {[%clk 0:02:54.9]} 9... Ba5 {[%clk 0:02:18.8]}
10. h3 {[%clk 0:02:19.7]} 10... Bb6 {[%clk 0:02:13.7]} 11. d4 {[%clk 0:02:13.6]}
11... Qe7 {[%clk 0:02:04.6]} 12. d5 {[%clk 0:01:48]} 12... Nd8 {[%clk
0:02:00.9]} 13. Be3 {[%clk 0:01:47.9]} 13... f5 {[%clk 0:01:48.3]} 14. Bxb6
{[%clk 0:01:41.7]} 14... cxb6 {[%clk 0:01:46.7]} 15. exf5 {[%clk 0:01:25.6]}
15... Bxf5 {[%clk 0:01:42.7]} 16. Ng3 {[%clk 0:00:51.6]} 16... Bg6 {[%clk
0:01:41.6]} 17. Bc2 {[%clk 0:00:44.7]} 17... Bxc2 {[%clk 0:01:34.3]} 18. Qxc2
{[%clk 0:00:44.7]} 18... Nf4 {[%clk 0:01:32.7]} 19. Rae1 {[%clk 0:00:37.7]}
19... Nxh3+ {[%clk 0:01:23]} 20. gxh3 {[%clk 0:00:32.3]} 20... Rxf3 {[%clk
0:01:22.6]} 21. Qe4 {[%clk 0:00:31]} 21... Qf6 {[%clk 0:01:12.7]} 22. Qg4 {[%clk
0:00:24.8]} 22... Nf7 {[%clk 0:01:04.9]} 23. Qd7 {[%clk 0:00:24.4]} 23... Ng5
{[%clk 0:00:43.7]} 24. Kg2 {[%clk 0:00:20.5]} 24... Rf8 {[%clk 0:00:40.6]} 25.
h4 {[%clk 0:00:19.1]} 25... Rxf2+ {[%clk 0:00:34.8]} 26. Kg1 {[%clk 0:00:18.8]}
26... Qf3 {[%clk 0:00:31.4]} 27. Rxf2 {[%clk 0:00:10.4]} 27... Qxf2+ {[%clk
0:00:30.3]} 28. Kh1 {[%clk 0:00:10.9]} 28... Qxe1+ {[%clk 0:00:28.3]} 29. Kh2
{[%clk 0:00:10.5]} 29... Rf2# {[%clk 0:00:25]} 0-1

[Event "*** Titled Tuesday Blitz"]
[Site "Chess.com"]
[Date "2021.03.09"]
[Round "7"]
[White "kekic76"]
[Black "googlegoom"]
[Result "1-0"]
[WhiteElo "2360"]
[BlackElo "2466"]
[TimeControl "180+1"]
[EndTime "11:21:06 PST"]
[Termination "kekic76 won by checkmate"]

1. e4 {[%clk 0:02:18]} 1... c5 {[%clk 0:02:57.4]} 2. Nf3 {[%clk 0:02:17.9]} 2...
Nc6 {[%clk 0:02:57.4]} 3. d4 {[%clk 0:02:18]} 3... cxd4 {[%clk 0:02:58.3]} 4.
Nxd4 {[%clk 0:02:18.7]} 4... Qb6 {[%clk 0:02:58.9]} 5. Nb3 {[%clk 0:02:17.9]}
5... Nf6 {[%clk 0:02:59.6]} 6. Nc3 {[%clk 0:02:18.2]} 6... e6 {[%clk 0:03:00.1]}
7. Bd3 {[%clk 0:02:16.9]} 7... d6 {[%clk 0:02:59.7]} 8. O-O {[%clk 0:02:16.7]}
8... a6 {[%clk 0:03:00]} 9. Be3 {[%clk 0:02:16.3]} 9... Qc7 {[%clk 0:03:00.6]}
10. Qe2 {[%clk 0:02:16.5]} 10... b5 {[%clk 0:03:01.2]} 11. a3 {[%clk 0:02:15.7]}
11... Bb7 {[%clk 0:03:00.6]} 12. Rae1 {[%clk 0:02:16]} 12... Be7 {[%clk
0:03:00.5]} 13. f4 {[%clk 0:02:16]} 13... b4 {[%clk 0:02:52.1]} 14. axb4 {[%clk
0:02:15.4]} 14... Nxb4 {[%clk 0:02:53]} 15. Kh1 {[%clk 0:02:15.6]} 15... O-O
{[%clk 0:02:44]} 16. Nd4 {[%clk 0:02:11.4]} 16... Nxd3 {[%clk 0:02:36.5]} 17.
cxd3 {[%clk 0:02:10.8]} 17... Rac8 {[%clk 0:02:36.1]} 18. f5 {[%clk 0:02:06.3]}
18... e5 {[%clk 0:02:35.7]} 19. Nf3 {[%clk 0:02:06.2]} 19... d5 {[%clk
0:02:34.6]} 20. Bg5 {[%clk 0:02:01.3]} 20... dxe4 {[%clk 0:02:17.1]} 21. dxe4
{[%clk 0:01:57.9]} 21... h6 {[%clk 0:02:12.1]} 22. Bxf6 {[%clk 0:01:57.6]} 22...
Bxf6 {[%clk 0:02:12.1]} 23. Rd1 {[%clk 0:01:57.9]} 23... Rfd8 {[%clk 0:02:11.7]}
24. h3 {[%clk 0:01:49.2]} 24... Be7 {[%clk 0:01:59.5]} 25. Rxd8+ {[%clk
0:01:44.8]} 25... Rxd8 {[%clk 0:01:59.4]} 26. Rd1 {[%clk 0:01:45.7]} 26... Bb4
{[%clk 0:01:45.1]} 27. Nd5 {[%clk 0:01:35.4]} 27... Qd6 {[%clk 0:01:30.3]} 28.
Kh2 {[%clk 0:01:17.2]} 28... a5 {[%clk 0:01:28.3]} 29. Qc4 {[%clk 0:01:01.8]}
29... Ba6 {[%clk 0:01:25.6]} 30. Qb3 {[%clk 0:00:58.3]} 30... Kh8 {[%clk
0:01:18]} 31. Nc3 {[%clk 0:00:50.3]} 31... Qf8 {[%clk 0:01:17.7]} 32. Rxd8
{[%clk 0:00:50]} 32... Qxd8 {[%clk 0:01:18.6]} 33. Qxf7 {[%clk 0:00:46.6]} 33...
Qa8 {[%clk 0:01:03.7]} 34. Nd5 {[%clk 0:00:40.7]} 34... Bc5 {[%clk 0:00:54.3]}
35. f6 {[%clk 0:00:30.4]} 35... Bf8 {[%clk 0:00:42]} 36. Nxe5 {[%clk 0:00:22.3]}
36... Qb8 {[%clk 0:00:41.2]} 37. Nc7 {[%clk 0:00:22.2]} 37... gxf6 {[%clk
0:00:36.9]} 38. Ng6# {[%clk 0:00:21.6]} 1-0

[Event "*** Titled Tuesday Blitz"]
[Site "Chess.com"]
[Date "2021.03.09"]
[Round "7"]
[White "rasmussvane"]
[Black "Dyadya81"]
[Result "1-0"]
[WhiteElo "2946"]
[BlackElo "2728"]
[TimeControl "180+1"]
[EndTime "11:21:12 PST"]
[Termination "rasmussvane won on time"]

1. Nf3 {[%clk 0:03:00.9]} 1... Nf6 {[%clk 0:02:59.3]} 2. g3 {[%clk 0:03:01.4]}
2... g6 {[%clk 0:02:59.5]} 3. Bg2 {[%clk 0:03:01.8]} 3... Bg7 {[%clk 0:03:00.1]}
4. O-O {[%clk 0:03:02.5]} 4... O-O {[%clk 0:03:00.2]} 5. d4 {[%clk 0:03:03.1]}
5... d6 {[%clk 0:03:00.8]} 6. Re1 {[%clk 0:03:03.4]} 6... Nbd7 {[%clk 0:02:56]}
7. e4 {[%clk 0:03:04]} 7... e5 {[%clk 0:02:56.3]} 8. Nc3 {[%clk 0:03:04.9]} 8...
a6 {[%clk 0:02:55.6]} 9. a4 {[%clk 0:03:05.1]} 9... exd4 {[%clk 0:02:54.4]} 10.
Nxd4 {[%clk 0:03:06]} 10... Re8 {[%clk 0:02:54]} 11. h3 {[%clk 0:03:05]} 11...
Nc5 {[%clk 0:02:52.6]} 12. Bf4 {[%clk 0:03:02.5]} 12... Bd7 {[%clk 0:02:41.7]}
13. Qd2 {[%clk 0:03:01.4]} 13... Nh5 {[%clk 0:02:25.9]} 14. Bg5 {[%clk
0:02:56.9]} 14... Bf6 {[%clk 0:02:19.4]} 15. Bxf6 {[%clk 0:02:57.3]} 15... Nxf6
{[%clk 0:02:13.4]} 16. f4 {[%clk 0:02:51.9]} 16... Nh5 {[%clk 0:01:58.1]} 17. g4
{[%clk 0:02:39]} 17... Ng7 {[%clk 0:01:56.9]} 18. f5 {[%clk 0:02:33.3]} 18... c6
{[%clk 0:01:45.9]} 19. Rf1 {[%clk 0:02:27.8]} 19... Re5 {[%clk 0:01:26.9]} 20.
Rae1 {[%clk 0:02:10.5]} 20... Qb6 {[%clk 0:01:20.7]} 21. b3 {[%clk 0:01:04.4]}
21... Qb4 {[%clk 0:01:09.2]} 22. Re3 {[%clk 0:00:56.9]} 22... Rae8 {[%clk
0:01:00.5]} 23. Rfe1 {[%clk 0:00:53.2]} 23... b5 {[%clk 0:00:19.9]} 24. axb5
{[%clk 0:00:48.1]} 24... axb5 {[%clk 0:00:20.1]} 25. Nf3 {[%clk 0:00:42.7]}
25... gxf5 {[%clk 0:00:13.7]} 26. Nxe5 {[%clk 0:00:37.5]} 26... f4 {[%clk
0:00:09.4]} 27. Nxd7 {[%clk 0:00:37.9]} 27... fxe3 {[%clk 0:00:08.1]} 28. Nf6+
{[%clk 0:00:38.2]} 28... Kh8 {[%clk 0:00:08.1]} 29. Qxe3 {[%clk 0:00:35.7]}
29... Re6 {[%clk 0:00:05.5]} 30. Rf1 {[%clk 0:00:32.8]} 1-0

[Event "*** Titled Tuesday Blitz"]
[Site "Chess.com"]
[Date "2021.03.09"]
[Round "7"]
[White "toog"]
[Black "halldorgretar"]
[Result "1-0"]
[WhiteElo "2379"]
[BlackElo "2240"]
[TimeControl "180+1"]
[EndTime "11:21:16 PST"]
[Termination "toog won on time"]

1. e4 {[%clk 0:03:00.9]} 1... c5 {[%clk 0:02:59.1]} 2. Nf3 {[%clk 0:02:49.8]}
2... Nc6 {[%clk 0:02:58.7]} 3. d4 {[%clk 0:02:49]} 3... cxd4 {[%clk 0:02:58.7]}
4. Nxd4 {[%clk 0:02:49.9]} 4... Nf6 {[%clk 0:02:58.6]} 5. Nc3 {[%clk 0:02:50]}
5... e5 {[%clk 0:02:58.5]} 6. Ndb5 {[%clk 0:02:50.1]} 6... d6 {[%clk 0:02:58.9]}
7. Bg5 {[%clk 0:02:49.3]} 7... a6 {[%clk 0:02:58.9]} 8. Bxf6 {[%clk 0:02:48.8]}
8... gxf6 {[%clk 0:02:57.4]} 9. Na3 {[%clk 0:02:49]} 9... b5 {[%clk 0:02:57.8]}
10. Nd5 {[%clk 0:02:49.2]} 10... f5 {[%clk 0:02:58.2]} 11. Bd3 {[%clk
0:02:34.9]} 11... Be6 {[%clk 0:02:54.6]} 12. c3 {[%clk 0:02:30.8]} 12... Bxd5
{[%clk 0:02:48.2]} 13. exd5 {[%clk 0:02:31.7]} 13... Ne7 {[%clk 0:02:47.8]} 14.
Nxb5 {[%clk 0:02:25.2]} 14... Bg7 {[%clk 0:02:47.1]} 15. Na3 {[%clk 0:02:22.6]}
15... e4 {[%clk 0:02:45.9]} 16. Be2 {[%clk 0:02:21.2]} 16... O-O {[%clk
0:02:41]} 17. O-O {[%clk 0:02:20.4]} 17... Ng6 {[%clk 0:02:30]} 18. Qd2 {[%clk
0:02:20]} 18... Qh4 {[%clk 0:02:18.1]} 19. Nc4 {[%clk 0:02:08.4]} 19... f4
{[%clk 0:01:45.9]} 20. f3 {[%clk 0:01:36.9]} 20... e3 {[%clk 0:01:29.4]} 21. Qc2
{[%clk 0:01:32.3]} 21... Qg5 {[%clk 0:01:18.6]} 22. Nxd6 {[%clk 0:01:21]} 22...
Qxd5 {[%clk 0:00:52.4]} 23. Rad1 {[%clk 0:01:20.5]} 23... Qg5 {[%clk 0:00:47.5]}
24. Bc4 {[%clk 0:01:17.1]} 24... Rad8 {[%clk 0:00:36.6]} 25. Rd5 {[%clk
0:01:05.9]} 25... Qh4 {[%clk 0:00:32.7]} 26. Rfd1 {[%clk 0:01:03.8]} 26... Ne5
{[%clk 0:00:29.4]} 27. Nf5 {[%clk 0:00:49.8]} 27... Qg5 {[%clk 0:00:27.3]} 28.
Be2 {[%clk 0:00:40.6]} 28... Rxd5 {[%clk 0:00:16.5]} 29. Rxd5 {[%clk 0:00:41.5]}
29... Bf6 {[%clk 0:00:14.1]} 30. c4 {[%clk 0:00:39.9]} 30... Rc8 {[%clk
0:00:13.1]} 31. b3 {[%clk 0:00:38.2]} 31... Qg6 {[%clk 0:00:07.6]} 32. Rxe5
{[%clk 0:00:33.9]} 1-0

[Event "*** Titled Tuesday Blitz"]
[Site "Chess.com"]
[Date "2021.03.09"]
[Round "7"]
[White "Trickster_Pony"]
[Black "DarZay"]
[Result "1-0"]
[WhiteElo "1477"]
[BlackElo "2160"]
[TimeControl "180+1"]
[EndTime "11:21:16 PST"]
[Termination "Trickster_Pony won by checkmate"]

1. e4 {[%clk 0:03:00.9]} 1... c5 {[%clk 0:02:59.7]} 2. Nf3 {[%clk 0:03:00.8]}
2... Nc6 {[%clk 0:02:58.2]} 3. Be2 {[%clk 0:03:00.8]} 3... e6 {[%clk 0:02:52.4]}
4. O-O {[%clk 0:03:00.2]} 4... d5 {[%clk 0:02:48.8]} 5. d3 {[%clk 0:02:56.2]}
5... Be7 {[%clk 0:02:45.1]} 6. Nbd2 {[%clk 0:02:48.1]} 6... Nf6 {[%clk
0:02:41.8]} 7. exd5 {[%clk 0:02:36.4]} 7... exd5 {[%clk 0:02:40]} 8. c3 {[%clk
0:02:28.8]} 8... O-O {[%clk 0:02:38.3]} 9. d4 {[%clk 0:02:24.8]} 9... cxd4
{[%clk 0:02:32.9]} 10. Nxd4 {[%clk 0:02:21.5]} 10... Nxd4 {[%clk 0:02:22.3]} 11.
cxd4 {[%clk 0:02:22.4]} 11... Bf5 {[%clk 0:02:20.3]} 12. Nb3 {[%clk 0:02:09.3]}
12... Rc8 {[%clk 0:02:16.9]} 13. Bf4 {[%clk 0:02:06.7]} 13... Bc2 {[%clk
0:02:12.7]} 14. Qe1 {[%clk 0:02:03.1]} 14... Bxb3 {[%clk 0:02:01.3]} 15. axb3
{[%clk 0:02:04]} 15... Qb6 {[%clk 0:02:00.7]} 16. Bf3 {[%clk 0:02:00.1]} 16...
Rfe8 {[%clk 0:01:28.5]} 17. Qa5 {[%clk 0:01:41.2]} 17... Qxb3 {[%clk 0:01:22.4]}
18. Qxa7 {[%clk 0:01:27.7]} 18... b5 {[%clk 0:00:59.3]} 19. Be5 {[%clk
0:00:55.9]} 19... h6 {[%clk 0:00:53.7]} 20. Qb7 {[%clk 0:00:50.3]} 20... Qxb2
{[%clk 0:00:41]} 21. Rab1 {[%clk 0:00:36.8]} 21... Qc3 {[%clk 0:00:30.8]} 22.
Rxb5 {[%clk 0:00:20.7]} 22... Ne4 {[%clk 0:00:20.2]} 23. Qxd5 {[%clk 0:00:13.7]}
23... Nd2 {[%clk 0:00:18.8]} 24. Bh5 {[%clk 0:00:05.1]} 24... Nxf1 {[%clk
0:00:16]} 25. Qxf7+ {[%clk 0:00:04.8]} 25... Kh7 {[%clk 0:00:15.8]} 26. Qxg7#
{[%clk 0:00:05.7]} 1-0

[Event "*** Titled Tuesday Blitz"]
[Site "Chess.com"]
[Date "2021.03.09"]
[Round "7"]
[White "chescomhuynya"]
[Black "dolynachess"]
[Result "1-0"]
[WhiteElo "2580"]
[BlackElo "2428"]
[TimeControl "180+1"]
[EndTime "11:21:17 PST"]
[Termination "chescomhuynya won on time"]

1. e4 {[%clk 0:03:00.9]} 1... c5 {[%clk 0:02:59.7]} 2. Nf3 {[%clk 0:02:59.3]}
2... d6 {[%clk 0:02:59.6]} 3. d4 {[%clk 0:02:59.4]} 3... cxd4 {[%clk 0:03:00.5]}
4. Nxd4 {[%clk 0:03:00.2]} 4... Nf6 {[%clk 0:03:00.9]} 5. Nc3 {[%clk 0:03:00.7]}
5... g6 {[%clk 0:03:00.8]} 6. Be3 {[%clk 0:03:00.3]} 6... Bg7 {[%clk 0:03:00.8]}
7. f3 {[%clk 0:03:00.5]} 7... O-O {[%clk 0:03:01.1]} 8. Qd2 {[%clk 0:03:00.8]}
8... Nc6 {[%clk 0:03:01.3]} 9. O-O-O {[%clk 0:03:01]} 9... d5 {[%clk 0:02:58.7]}
10. Kb1 {[%clk 0:03:01]} 10... Nxd4 {[%clk 0:02:56.9]} 11. e5 {[%clk 0:03:01]}
11... Nf5 {[%clk 0:02:57]} 12. exf6 {[%clk 0:03:01.1]} 12... exf6 {[%clk
0:02:57.1]} 13. Bc5 {[%clk 0:02:59.5]} 13... d4 {[%clk 0:02:26]} 14. Bxf8 {[%clk
0:02:58.6]} 14... Qxf8 {[%clk 0:02:25.9]} 15. Ne4 {[%clk 0:02:57.5]} 15... Ne3
{[%clk 0:02:08.9]} 16. Re1 {[%clk 0:02:53.8]} 16... f5 {[%clk 0:02:09]} 17. Nf2
{[%clk 0:02:45.3]} 17... Be6 {[%clk 0:02:00.1]} 18. Nd1 {[%clk 0:02:08.7]} 18...
f4 {[%clk 0:01:57.3]} 19. g3 {[%clk 0:02:05.6]} 19... Bd5 {[%clk 0:01:13.2]} 20.
gxf4 {[%clk 0:01:58.9]} 20... Bxf3 {[%clk 0:01:12]} 21. Rg1 {[%clk 0:01:35.2]}
21... Nxd1 {[%clk 0:01:07]} 22. Rxd1 {[%clk 0:01:36.1]} 22... Bxd1 {[%clk
0:01:06.7]} 23. Qxd1 {[%clk 0:01:37]} 23... Qd6 {[%clk 0:00:46.2]} 24. f5 {[%clk
0:01:36.2]} 24... Qxh2 {[%clk 0:00:33.8]} 25. Bc4 {[%clk 0:01:36.1]} 25... Rf8
{[%clk 0:00:19.8]} 26. fxg6 {[%clk 0:01:35.9]} 26... hxg6 {[%clk 0:00:19.7]} 27.
Rxg6 {[%clk 0:01:36.1]} 27... b5 {[%clk 0:00:19.3]} 28. Qxd4 {[%clk 0:01:30.7]}
28... Qh7 {[%clk 0:00:12.9]} 29. Rg1 {[%clk 0:00:39.2]} 29... bxc4 {[%clk
0:00:11]} 30. Qxa7 {[%clk 0:00:38.4]} 30... c3 {[%clk 0:00:07.3]} 31. b3 {[%clk
0:00:36]} 31... Qf5 {[%clk 0:00:01.7]} 32. Qd4 {[%clk 0:00:34]} 1-0

[Event "*** Titled Tuesday Blitz"]
[Site "Chess.com"]
[Date "2021.03.09"]
[Round "7"]
[White "kidagent"]
[Black "Kislov_Oleg"]
[Result "1-0"]
[WhiteElo "2335"]
[BlackElo "2471"]
[TimeControl "180+1"]
[EndTime "11:21:19 PST"]
[Termination "kidagent won on time"]

1. e4 {[%clk 0:03:00.9]} 1... e6 {[%clk 0:02:56.6]} 2. d4 {[%clk 0:03:00.5]}
2... d5 {[%clk 0:02:57.2]} 3. Nd2 {[%clk 0:03:00.8]} 3... Nf6 {[%clk 0:02:56.8]}
4. e5 {[%clk 0:03:00.6]} 4... Nfd7 {[%clk 0:02:55.6]} 5. f4 {[%clk 0:03:00.7]}
5... c5 {[%clk 0:02:55.9]} 6. c3 {[%clk 0:03:01.1]} 6... Nc6 {[%clk 0:02:55.8]}
7. Ne2 {[%clk 0:02:57.4]} 7... Qb6 {[%clk 0:02:51.7]} 8. Nf3 {[%clk 0:02:56.8]}
8... Be7 {[%clk 0:02:27.6]} 9. g3 {[%clk 0:02:54.6]} 9... cxd4 {[%clk
0:02:15.7]} 10. cxd4 {[%clk 0:02:53.9]} 10... Bb4+ {[%clk 0:02:05.5]} 11. Kf2
{[%clk 0:02:51.8]} 11... f6 {[%clk 0:02:01.8]} 12. Be3 {[%clk 0:02:37.3]} 12...
O-O {[%clk 0:01:49.9]} 13. Bh3 {[%clk 0:02:36.7]} 13... fxe5 {[%clk 0:01:26.1]}
14. dxe5 {[%clk 0:02:33.8]} 14... Nc5 {[%clk 0:01:21.9]} 15. Kg2 {[%clk
0:02:25.7]} 15... d4 {[%clk 0:01:10.8]} 16. Nexd4 {[%clk 0:02:18.4]} 16... Nxd4
{[%clk 0:01:09.1]} 17. Nxd4 {[%clk 0:02:17.5]} 17... Na6 {[%clk 0:00:39.2]} 18.
Qf3 {[%clk 0:01:51.8]} 18... Bc5 {[%clk 0:00:35]} 19. Rad1 {[%clk 0:01:35.6]}
19... Bd7 {[%clk 0:00:31.5]} 20. Rhe1 {[%clk 0:01:20.5]} 20... Qxb2+ {[%clk
0:00:23.7]} 21. Rd2 {[%clk 0:01:09]} 21... Qa3 {[%clk 0:00:21.4]} 22. Bxe6+
{[%clk 0:00:46]} 22... Bxe6 {[%clk 0:00:20.5]} 23. Nxe6 {[%clk 0:00:46.9]} 23...
Rfc8 {[%clk 0:00:15.6]} 24. Qg4 {[%clk 0:00:42.8]} 24... Bf8 {[%clk 0:00:13.2]}
25. Rd7 {[%clk 0:00:38.4]} 25... g6 {[%clk 0:00:10.2]} 26. f5 {[%clk 0:00:35]}
26... Rc2+ {[%clk 0:00:09.7]} 27. Kh3 {[%clk 0:00:34.1]} 27... Qxa2 {[%clk
0:00:09.1]} 28. Rh1 {[%clk 0:00:29]} 28... Rc4 {[%clk 0:00:03.6]} 29. Qg5 {[%clk
0:00:23.1]} 1-0

[Event "*** Titled Tuesday Blitz"]
[Site "Chess.com"]
[Date "2021.03.09"]
[Round "7"]
[White "CroissantNeuf"]
[Black "Trickov"]
[Result "0-1"]
[WhiteElo "2484"]
[BlackElo "2382"]
[TimeControl "180+1"]
[EndTime "11:21:22 PST"]
[Termination "Trickov won by resignation"]

1. e4 {[%clk 0:03:00.9]} 1... c5 {[%clk 0:02:43.9]} 2. Nf3 {[%clk 0:03:00.4]}
2... d6 {[%clk 0:02:43.3]} 3. d4 {[%clk 0:03:00.8]} 3... Nf6 {[%clk 0:02:42.6]}
4. Nc3 {[%clk 0:03:00.4]} 4... cxd4 {[%clk 0:02:36.7]} 5. Nxd4 {[%clk
0:03:01.3]} 5... a6 {[%clk 0:02:36.9]} 6. Be3 {[%clk 0:03:00.9]} 6... e5 {[%clk
0:02:36.8]} 7. Nb3 {[%clk 0:03:01.4]} 7... Be6 {[%clk 0:02:37.4]} 8. f3 {[%clk
0:03:01.7]} 8... Nbd7 {[%clk 0:02:37.9]} 9. Qd2 {[%clk 0:03:02]} 9... b5 {[%clk
0:02:38.1]} 10. a4 {[%clk 0:03:00.9]} 10... b4 {[%clk 0:02:37.7]} 11. Nd5 {[%clk
0:03:01]} 11... Bxd5 {[%clk 0:02:38]} 12. exd5 {[%clk 0:03:00]} 12... Nb6 {[%clk
0:02:38.6]} 13. Qxb4 {[%clk 0:02:18.1]} 13... Nbxd5 {[%clk 0:02:36.4]} 14. Qd2
{[%clk 0:02:13.9]} 14... Nxe3 {[%clk 0:02:35.9]} 15. Qxe3 {[%clk 0:02:14]} 15...
Be7 {[%clk 0:02:34.8]} 16. Bd3 {[%clk 0:02:00.4]} 16... O-O {[%clk 0:02:23.9]}
17. O-O {[%clk 0:01:59.7]} 17... Re8 {[%clk 0:02:18.3]} 18. a5 {[%clk
0:01:55.9]} 18... d5 {[%clk 0:02:14.2]} 19. Rfe1 {[%clk 0:01:42]} 19... e4
{[%clk 0:01:53.4]} 20. Bf1 {[%clk 0:01:36.2]} 20... Qc7 {[%clk 0:01:48.7]} 21.
Nd4 {[%clk 0:01:15.5]} 21... Bc5 {[%clk 0:01:21.2]} 22. c3 {[%clk 0:01:14.8]}
22... Qa7 {[%clk 0:01:10.2]} 23. Red1 {[%clk 0:00:28.3]} 23... exf3 {[%clk
0:00:54.5]} 24. Qxf3 {[%clk 0:00:29.2]} 24... Re4 {[%clk 0:00:54]} 25. Ra4
{[%clk 0:00:17]} 25... Qd7 {[%clk 0:00:45.3]} 26. Raa1 {[%clk 0:00:10]} 26...
Rae8 {[%clk 0:00:42.7]} 27. b4 {[%clk 0:00:08.7]} 27... Ba7 {[%clk 0:00:41.7]}
28. Kh1 {[%clk 0:00:08.3]} 28... Re3 {[%clk 0:00:40.4]} 29. Qf4 {[%clk
0:00:04.5]} 29... Rxc3 {[%clk 0:00:31.2]} 30. Nf5 {[%clk 0:00:04]} 30... Ne4
{[%clk 0:00:24.1]} 31. Qg4 {[%clk 0:00:03]} 31... Nf2+ {[%clk 0:00:23.6]} 0-1